bitfinex/quotes_ETHUSD_20250908
["timestamp","ask_amount","ask_price","bid_price","bid_amount"]
[1757359415670,3.11380171,4307.0,4306.9,0.3091]
[1757359417856,0.792,4307.0,4306.9,0.3091]
[1757359418373,3.11380171,4307.0,4306.9,0.3091]
[1757359418736,0.792,4307.0,4306.9,0.3091]
[1757359418934,3.11380171,4307.0,4306.9,0.3091]
[1757359419133,3.22985562,4306.9,4306.8,0.027]
[1757359419435,13.35885717,4306.9,4306.8,0.027]
[1757359419633,13.64405717,4306.9,4306.8,0.027]
[1757359420198,5.59615562,4306.9,4306.8,0.027]
[1757359420328,3.51505562,4306.9,4306.8,0.027]
[1757359420528,5.34718187,4306.9,4306.8,0.027]
[1757359420748,15.47618342,4306.9,4306.8,0.027]
[1757359422151,15.60511752,4306.9,4306.8,0.027]
[1757359423154,15.60511504,4306.9,4306.8,0.027]
[1757359423361,0.792,4306.7,4306.3,0.002]
[1757359423684,3.1141252,4306.4,4306.3,0.002]
[1757359423885,7.2923252,4306.4,4306.3,0.002]
[1757359424057,7.7640252,4306.4,4306.3,0.002]
[1757359424258,9.3734252,4306.4,4306.3,0.002]
[1757359426774,3.11423305,4306.2,4306.1,0.02]
[1757359427034,15.39875545,4306.2,4306.1,0.02]
[1757359427188,18.25992387,4306.2,4306.1,0.02]
[1757359427355,17.76505545,4306.2,4306.1,0.02]
[1757359427572,18.25972472,4306.2,4306.1,0.02]
[1757359427887,20.52763269,4306.2,4306.1,0.02]
[1757359428269,20.52763269,4306.2,4304.7,2.2102]
[1757359428270,16.70397145,4306.2,4304.7,2.2102]
[1757359428484,16.70397145,4306.2,4304.6,1.6017]
[1757359428485,0.792,4305.2,4304.6,1.6017]
[1757359428661,7.00777246,4305.2,4304.6,1.6017]
[1757359428867,4.685,4305.2,4305.1,0.3291]
[1757359429303,7.00777246,4305.2,4305.1,0.3291]
[1757359429505,0.792,4305.2,4305.1,0.3291]
[1757359429812,7.00777246,4305.2,4305.1,0.3291]
[1757359430259,7.00777246,4305.2,4305.1,0.02]
[1757359430459,7.00777246,4305.2,4305.1,0.3291]
[1757359431458,7.00777246,4305.2,4305.1,0.02]
[1757359431459,7.29297246,4305.2,4305.1,0.02]
[1757359431653,8.46544971,4305.2,4305.1,0.02]
[1757359431860,17.65105126,4305.2,4305.1,0.02]
[1757359432486,18.12275126,4305.2,4305.1,0.02]
[1757359433008,7.70854971,4305.2,4305.1,0.02]
[1757359433664,7.99374971,4305.2,4305.1,0.02]
[1757359434396,7.70854971,4305.2,4305.1,0.02]
[1757359435307,7.70854971,4305.2,4305.1,0.3291]
[1757359435807,7.99374971,4305.2,4305.1,0.02]
[1757359436145,7.70854971,4305.2,4305.1,0.02]
[1757359437075,3.81554971,4305.2,4305.1,0.02]
[1757359437290,7.70854971,4305.2,4305.1,0.02]
[1757359437672,16.51335126,4305.2,4305.1,0.02]
[1757359437873,0.792,4305.0,4304.8,0.025]
[1757359438073,15.05583588,4304.9,4304.8,0.025]
[1757359438425,17.42213588,4304.9,4304.8,0.025]
[1757359438723,15.81273588,4304.9,4304.8,0.025]
[1757359439044,18.08064385,4304.9,4304.8,0.025]
[1757359439547,9.5610423,4304.9,4304.8,0.025]
[1757359439694,9.2758423,4304.9,4304.8,0.025]
[1757359440040,9.5610423,4304.9,4304.8,0.025]
[1757359440399,10.0327423,4304.9,4304.8,0.025]
[1757359441028,9.5610423,4304.9,4304.8,0.025]
[1757359442194,9.2758423,4304.9,4304.8,0.025]
[1757359443181,9.5614423,4304.9,4304.8,0.025]
[1757359443387,10.0115423,4304.9,4304.8,0.025]
[1757359444228,9.2758423,4304.9,4304.8,0.3105]
[1757359444525,6.21593433,4304.9,4304.8,2.2584]
[1757359444843,6.21593433,4304.9,4304.8,2.2604]
[1757359445027,3.11493433,4304.9,4304.8,2.2604]
[1757359446018,3.11493433,4304.9,4304.8,1.8258]
[1757359446356,3.11493433,4304.9,4304.8,0.3125]
[1757359446954,0.792,4304.9,4304.8,0.3125]
[1757359447354,3.11493433,4304.9,4304.8,2.2604]
[1757359448253,3.11493433,4304.9,4304.8,1.8258]
[1757359448508,0.792,4304.9,4304.8,0.3125]
[1757359448704,3.11493433,4304.9,4304.8,0.3125]
[1757359449636,0.792,4304.9,4304.8,0.3125]
[1757359450162,3.11493433,4304.9,4304.8,0.3125]
[1757359453258,3.11493433,4304.9,4304.8,0.027]
[1757359456345,3.85063433,4304.9,4304.8,0.027]
[1757359456938,3.40053433,4304.9,4304.8,0.027]
[1757359457756,9.92234112,4304.9,4304.8,0.027]
[1757359458084,8.29067324,4304.9,4304.8,0.027]
[1757359458289,8.29068484,4304.9,4304.8,0.027]
[1757359458658,4.68428484,4304.9,4304.8,0.027]
[1757359458862,8.57628484,4304.9,4304.8,0.027]
[1757359459458,9.02638484,4304.9,4304.8,0.027]
[1757359459648,19.26292032,4304.9,4304.8,0.027]
[1757359464069,19.26278471,4304.9,4304.8,0.027]
[1757359466797,15.37078471,4304.9,4304.8,0.027]
[1757359466973,19.26278471,4304.9,4304.8,0.027]
[1757359467168,15.37078471,4304.9,4304.8,0.027]
[1757359467373,19.26278471,4304.9,4304.8,0.027]
[1757359468300,11.21488316,4304.9,4304.8,0.027]
[1757359468515,6.87278316,4304.9,4304.8,0.027]
[1757359468720,11.21488316,4304.9,4304.8,0.027]
[1757359471972,11.21128316,4304.9,4304.8,0.027]
[1757359472977,9.73568316,4304.9,4304.8,0.027]
[1757359473591,11.27938316,4304.9,4304.8,0.027]
[1757359474284,8.16444883,4304.9,4304.1,0.02]
[1757359474484,11.16321366,4304.2,4304.1,0.02]
[1757359474731,15.1845582,4304.2,4304.1,0.02]
[1757359475292,15.05521366,4304.2,4304.1,0.02]
[1757359476096,15.48993043,4304.2,4304.1,0.02]
[1757359476287,7.31271211,4304.2,4304.1,0.02]
[1757359478162,7.00731211,4304.2,4304.1,1.8617]
[1757359478435,3.11531211,4304.2,4304.1,2.3195]
[1757359478741,7.00631211,4304.2,4304.1,2.3195]
[1757359478893,3.11531211,4304.2,4304.1,2.3195]
[1757359482034,3.11531211,4304.2,4304.1,0.3293]
[1757359482390,3.11531211,4304.2,4304.1,0.3313]
[1757359482898,3.11531211,4304.2,4304.1,0.022]
[1757359483099,3.11531211,4304.2,4304.1,0.3313]
[1757359485428,3.11531211,4304.2,4304.1,2.3215]
[1757359485744,3.11531211,4304.2,4304.1,0.3313]
[1757359489776,3.11531211,4304.2,4304.1,0.022]
[1757359490185,3.11531211,4304.2,4304.1,0.3313]
[1757359490405,3.11531211,4304.2,4304.1,0.022]
[1757359493464,0.792,4304.2,4304.1,0.3313]
[1757359493771,0.001,4305.1,4304.1,2.3215]
[1757359493971,2.32299144,4304.8,4304.2,1.9902]
[1757359494172,0.116,4304.2,4304.1,0.022]
[1757359494378,0.908,4304.2,4304.1,0.022]
[1757359494587,0.908,4304.2,4304.1,5.65466609]
[1757359494769,0.908,4304.2,4304.1,7.64486609]
[1757359495614,0.908,4304.2,4304.1,0.3313]
[1757359495816,3.11585201,4303.2,4302.8,0.025]
[1757359495960,1.13698926,4303.2,4302.8,0.025]
[1757359496161,0.792,4303.2,4303.1,0.3293]
[1757359496508,0.792,4303.2,4303.1,2.3195]
[1757359496711,3.11585201,4303.2,4303.1,2.3195]
[1757359497007,3.86775201,4303.2,4303.1,0.02]
[1757359497173,5.43915705,4303.2,4303.1,0.02]
[1757359497591,4.99265705,4303.2,4303.1,0.02]
[1757359498277,4.68725705,4303.2,4303.1,0.02]
[1757359499828,4.99265705,4303.2,4303.1,0.02]
[1757359500052,6.98285705,4303.2,4303.1,0.02]
[1757359500198,5.43915705,4303.2,4303.1,0.02]
[1757359501005,3.11596002,4303.0,4302.8,0.025]
[1757359501732,2.32379801,4303.3,4302.9,2.2743]
[1757359501892,13.41352788,4303.4,4302.9,2.2743]
[1757359502104,2.32388986,4303.2,4302.9,2.2743]
[1757359502419,0.792,4303.0,4302.9,2.2743]
[1757359502623,0.792,4303.0,4302.9,0.3003]
[1757359503664,5.72405199,4303.0,4302.9,0.003]
[1757359503867,5.41246002,4303.0,4302.9,0.003]
[1757359505536,3.40326002,4303.0,4302.9,0.003]
[1757359505738,3.11596002,4303.0,4302.9,0.003]
[1757359506289,3.40326002,4303.0,4302.9,0.003]
[1757359506765,3.84536002,4303.0,4302.9,0.003]
[1757359507560,3.84536002,4303.0,4302.9,0.09598509]
[1757359507930,3.40326002,4303.0,4302.9,0.09598509]
[1757359509155,3.84536002,4303.0,4302.9,0.09598509]
[1757359509978,3.40326002,4303.0,4302.9,0.09598509]
[1757359510674,3.11596002,4303.0,4302.9,0.09598509]
[1757359512055,3.11633814,4302.3,4302.2,7.2075]
[1757359512251,3.40363814,4302.3,4302.2,1.783]
[1757359512589,3.23239217,4302.2,4301.8,0.025]
[1757359512804,3.23239217,4302.2,4302.1,1e-08]
[1757359512805,16.52992005,4302.2,4302.1,1e-08]
[1757359513105,18.95515974,4302.2,4302.1,1e-08]
[1757359513248,9.43363186,4302.2,4302.1,1e-08]
[1757359513449,5.41289217,4302.2,4302.1,1e-08]
[1757359513696,7.46977199,4302.2,4302.1,1e-08]
[1757359513914,20.88529987,4302.2,4302.1,1e-08]
[1757359514586,16.99229987,4302.2,4302.1,1e-08]
[1757359514792,20.88529987,4302.2,4302.1,1e-08]
[1757359516746,2.32435424,4302.3,4302.1,1e-08]
[1757359517046,3.894,4303.0,4302.1,5.01003513]
[1757359517168,3.894,4303.0,4302.2,5.32438429]
[1757359517622,3.894,4303.0,4302.1,2.40583682]
[1757359517767,2.32390643,4303.1,4302.1,2.40583682]
[1757359517964,2.32405263,4302.9,4302.1,4.55538226]
[1757359518166,0.792,4302.8,4302.2,3.0]
[1757359518418,3.11606828,4302.8,4302.2,3.0]
[1757359518572,0.792,4302.6,4302.1,2.23093682]
[1757359518773,0.792,4302.9,4302.5,0.2798]
[1757359519130,3.55812846,4302.9,4302.5,0.2798]
[1757359519495,3.55812846,4302.9,4302.6,0.69741573]
[1757359520214,2.32385359,4303.2,4302.8,0.2798]
[1757359520516,0.001,4303.0,4302.8,0.2798]
[1757359521010,0.001,4303.0,4302.6,2.23091573]
[1757359521011,0.2873,4302.9,4302.6,0.69741573]
[1757359521229,10.31452788,4302.7,4302.6,0.69741573]
[1757359521440,13.36804994,4302.7,4302.6,0.69741573]
[1757359521736,11.86804994,4302.7,4302.6,0.69741573]
[1757359521936,13.43514994,4302.7,4302.6,0.69741573]
[1757359522842,0.001,4303.0,4302.6,0.69741573]
[1757359522989,2.61142206,4302.7,4302.6,0.69741573]
[1757359523188,2.32427964,4302.5,4302.2,1.784]
[1757359523402,2.32429702,4302.4,4302.2,1.784]
[1757359523607,0.792,4302.3,4302.2,1.784]
[1757359523941,3.11633814,4302.3,4302.2,2.4814141]
[1757359524347,3.23239217,4302.2,4302.1,0.00200001]
[1757359524822,5.52889217,4302.2,4302.1,0.00200001]
[1757359525437,3.96179217,4302.2,4302.1,0.00200001]
[1757359525926,3.23239217,4302.2,4302.1,0.00200001]
[1757359526329,3.23239217,4302.2,4302.1,0.28180001]
[1757359526925,3.23239217,4302.2,4302.1,0.00200001]
[1757359528512,0.908,4302.2,4302.1,0.28180001]
[1757359528716,0.908,4302.2,4302.1,1.81530001]
[1757359529269,0.792,4302.5,4302.1,4.13974621]
[1757359529563,0.792,4302.5,4302.2,5.4335]
[1757359529852,7.12,4302.6,4302.2,7.75786641]
[1757359530005,0.001,4303.0,4302.2,7.75786641]
[1757359530006,0.001,4303.0,4302.4,0.2798]
[1757359530213,0.001,4303.0,4302.9,2.32401403]
[1757359530453,0.025,4303.8,4303.7,2.32358203]
[1757359530624,0.025,4303.8,4303.7,8.31161785]
[1757359530824,0.025,4303.8,4303.7,9.99678203]
[1757359531274,0.025,4303.8,4303.7,10.11278203]
[1757359531722,0.025,4303.8,4303.7,7.6143]
[1757359532161,0.025,4303.8,4303.7,10.11278203]
[1757359532914,0.025,4303.8,4303.7,13.11278203]
[1757359534622,0.025,4303.8,4303.7,13.11378203]
[1757359536057,0.025,4303.8,4303.7,5.1798]
[1757359536258,0.025,4303.8,4303.7,9.0818]
[1757359537128,0.025,4303.8,4303.7,4.9]
[1757359537316,1.5623,4303.8,4303.7,5.801]
[1757359537659,1.5623,4303.8,4303.7,8.801]
[1757359537859,1.1025,4303.8,4303.7,8.801]
[1757359538159,0.025,4303.8,4303.7,9.0808]
[1757359538365,0.025,4303.8,4303.7,10.6304]
[1757359538658,0.026,4303.8,4303.7,9.0808]
[1757359538953,0.026,4303.8,4303.7,11.40438203]
[1757359539109,0.026,4303.8,4303.7,9.0808]
[1757359539552,0.026,4303.8,4303.7,11.40438203]
[1757359539756,0.026,4303.8,4303.7,9.0808]
[1757359539967,1.5633,4303.8,4303.7,1.9]
[1757359540127,1.5633,4303.8,4301.6,0.002]
[1757359540128,2.32379801,4303.3,4302.7,3.908]
[1757359540328,0.792,4303.4,4302.1,3.33460001]
[1757359540329,8.34855842,4303.1,4302.8,3.629]
[1757359540545,3.40156146,4302.9,4302.8,3.908]
[1757359540763,0.792,4302.3,4302.1,1.78500001]
[1757359540962,3.11633814,4302.3,4302.2,3.91]
[1757359541259,3.40183814,4302.3,4302.2,3.91]
[1757359541657,5.39973814,4302.3,4302.2,3.91]
[1757359542251,5.39973814,4302.3,4302.1,2.48244978]
[1757359542252,2.44039217,4302.2,4302.1,6.39444978]
[1757359542597,4.43829217,4302.2,4302.1,6.39444978]
[1757359542795,4.72379217,4302.2,4302.1,6.39444978]
[1757359542984,3.18569217,4302.2,4302.1,6.39444978]
[1757359543189,0.8613,4302.2,4302.1,6.39444978]
[1757359543396,0.116,4302.2,4302.1,9.67424978]
[1757359543519,0.116,4302.4,4302.2,3.0]
[1757359543718,0.116,4302.4,4302.3,0.2798]
[1757359544936,0.116,4302.4,4302.2,3.0]
[1757359545348,0.116,4302.4,4302.3,0.2798]
[1757359546774,0.116,4302.4,4302.3,7.1918]
[1757359547148,0.116,4302.4,4302.3,6.912]
[1757359548603,3.11633814,4302.3,4302.2,0.69732818]
[1757359548809,3.11633814,4302.3,4302.2,4.60832818]
[1757359548810,6.25134037,4302.3,4302.2,4.60832818]
[1757359549125,3.86163814,4302.3,4302.2,4.60832818]
[1757359549760,5.39973814,4302.3,4302.2,4.60832818]
[1757359550790,5.39973814,4302.3,4302.2,4.60932818]
[1757359552701,3.0754,4302.3,4302.2,4.60932818]
[1757359553288,4.32201383,4302.8,4302.2,4.60932818]
[1757359553474,3.86221383,4302.8,4302.2,4.60932818]
[1757359553672,0.792,4302.7,4302.2,4.60932818]
[1757359553858,0.4598,4303.2,4302.2,6.15892818]
[1757359554054,2.32395441,4303.1,4302.6,0.2798]
[1757359554299,0.4598,4303.1,4302.7,3.91]
[1757359554601,0.792,4302.8,4302.7,3.91]
[1757359555465,3.11606804,4302.8,4302.7,3.91]
[1757359556207,3.86136804,4302.8,4302.7,3.91]
[1757359556503,5.39946804,4302.8,4302.7,3.91]
[1757359557075,3.86136804,4302.8,4302.7,4.60733467]
[1757359557481,0.792,4302.8,4302.7,4.60733467]
[1757359557682,3.11606804,4302.8,4302.7,4.60733467]
[1757359558321,6.23167109,4303.6,4302.7,4.60733467]
[1757359558322,0.4598,4303.7,4302.7,4.88713467]
[1757359558621,0.116,4302.8,4302.7,4.60733467]
[1757359558762,0.116,4302.8,4302.7,4.88713467]
[1757359558959,0.116,4302.8,4302.7,4.60733467]
[1757359559814,5.51546804,4302.8,4302.7,0.69733467]
[1757359559979,5.51546804,4302.8,4302.7,4.13633467]
[1757359559980,5.83876661,4302.8,4302.7,4.13633467]
[1757359560610,5.83876661,4302.8,4302.7,0.69733467]
[1757359560817,3.11612206,4302.7,4302.6,3.909]
[1757359560985,4.24410895,4302.7,4302.6,3.909]
[1757359561332,6.52310895,4302.7,4302.6,3.909]
[1757359561684,6.52310895,4302.7,4302.4,0.69744005]
[1757359561685,3.11623009,4302.5,4302.4,0.69744005]
[1757359561880,3.11628412,4302.4,4302.3,0.002]
[1757359562082,5.52395988,4302.4,4302.3,0.002]
[1757359562327,10.43631401,4302.4,4302.3,0.002]
[1757359562510,6.52531401,4302.4,4302.3,0.002]
[1757359565150,6.65407737,4302.4,4302.3,0.002]
[1757359565443,6.52531401,4302.4,4302.3,0.002]
[1757359565647,6.65406178,4302.4,4302.3,0.002]
[1757359566045,7.14853347,4302.4,4302.3,0.002]
[1757359566342,7.14867906,4302.4,4302.3,0.002]
[1757359566549,7.14867925,4302.4,4302.3,0.002]
[1757359566902,10.14867925,4302.4,4302.3,0.002]
[1757359568065,10.36335081,4302.4,4302.3,0.002]
[1757359568651,10.14867925,4302.4,4302.3,0.002]
[1757359569152,10.36340005,4302.4,4302.3,0.002]
[1757359570655,10.98201899,4302.4,4302.3,0.002]
[1757359571847,10.36340005,4302.4,4302.3,0.002]
[1757359572049,10.98201899,4302.4,4302.3,0.002]
[1757359572247,10.36340005,4302.4,4302.3,0.002]
[1757359573059,14.27240005,4302.4,4302.3,0.002]
[1757359573445,14.05767925,4302.4,4302.3,0.002]
[1757359574370,21.62350685,4302.4,4302.3,0.002]
[1757359574914,21.62355308,4302.4,4302.3,0.002]
[1757359575116,21.62455308,4302.4,4302.3,0.002]
[1757359575418,21.83920626,4302.4,4302.3,0.002]
[1757359576161,17.92920626,4302.4,4302.3,0.002]
[1757359576364,21.83820626,4302.4,4302.3,0.002]
[1757359577114,0.792,4302.1,4301.8,1e-08]
[1757359577316,10.68238186,4301.9,4301.8,1e-08]
[1757359577634,3.53264826,4301.9,4301.8,1e-08]
[1757359577829,5.52434826,4301.9,4301.8,1e-08]
[1757359578022,5.52434826,4301.9,4301.8,0.00200001]
[1757359578650,6.01886225,4301.9,4301.8,0.00200001]
[1757359578856,8.2642844,4301.9,4301.8,0.00200001]
[1757359580562,8.2642844,4301.9,4300.8,0.025]
[1757359580563,0.792,4301.7,4300.8,0.025]
[1757359580732,10.68292234,4300.9,4300.8,0.025]
[1757359580932,10.97022234,4300.9,4300.8,0.025]
[1757359581139,10.68292234,4300.9,4300.8,0.025]
[1757359581352,7.02609474,4300.9,4300.8,0.3048]
[1757359581560,7.02609474,4300.9,4300.8,0.025]
[1757359582291,7.02609474,4300.9,4300.8,0.3048]
[1757359582581,3.11709474,4300.9,4300.8,2.0117]
[1757359582757,3.11709474,4300.9,4300.8,1.8368]
[1757359583771,0.792,4300.9,4300.8,1.8368]
[1757359583971,3.11709474,4300.9,4300.8,1.8368]
[1757359585584,0.792,4300.9,4300.8,1.8368]
[1757359585787,2.32489608,4301.3,4300.8,2.0117]
[1757359586092,0.792,4301.3,4300.9,0.1749]
[1757359586284,0.792,4301.3,4301.2,0.2798]
[1757359586444,2.32487852,4301.3,4301.2,1.8118]
[1757359586651,0.792,4301.3,4301.2,1.8118]
[1757359587687,0.792,4301.3,4301.2,1.7878]
[1757359591560,0.792,4301.3,4301.2,0.2558]
[1757359591790,0.792,4301.2,4300.8,0.72258925]
[1757359591960,0.4722,4301.2,4300.8,0.025]
[1757359592171,9.0108276,4301.6,4301.1,0.2414]
[1757359592172,0.792,4301.3,4301.1,0.2414]
[1757359592393,3.11693257,4301.2,4301.1,0.2414]
[1757359592703,3.11702125,4301.1,4300.8,0.025]
[1757359592956,0.792,4301.1,4300.8,0.025]
[1757359593116,0.792,4301.0,4300.8,0.025]
[1757359593312,0.792,4301.1,4300.8,0.025]
[1757359593671,0.92119746,4301.4,4300.8,0.025]
[1757359593870,3.41679474,4300.9,4300.8,0.025]
[1757359594302,3.88899474,4300.9,4300.8,0.025]
[1757359595100,1.5639,4300.9,4300.8,0.025]
[1757359595297,3.88899474,4300.9,4300.8,0.025]
[1757359596398,3.88899474,4300.9,4300.8,0.027]
[1757359598405,15.39255539,4300.9,4300.8,0.027]
[1757359598548,6.56340931,4300.9,4300.8,0.027]
[1757359598744,15.60784648,4300.9,4300.8,0.027]
[1757359598950,16.10388169,4300.9,4300.8,0.027]
[1757359599253,15.8885906,4300.9,4300.8,0.027]
[1757359599449,16.10383397,4300.9,4300.8,0.027]
[1757359600181,20.00983397,4300.9,4300.8,0.027]
[1757359600971,16.10383397,4300.9,4300.8,0.027]
[1757359601156,6.56336159,4300.9,4300.8,0.027]
[1757359601489,9.97232638,4300.9,4300.8,0.027]
[1757359601693,10.46836159,4300.9,4300.8,0.027]
[1757359601842,9.02336159,4300.9,4300.8,0.027]
[1757359602048,8.52732638,4300.9,4300.8,0.027]
[1757359602350,10.46801077,4300.9,4300.8,0.027]
[1757359602853,9.97232638,4300.9,4300.8,0.027]
[1757359603282,10.46798971,4300.9,4300.8,0.027]
[1757359603602,9.97220446,4300.9,4300.8,0.027]
[1757359603753,10.46785357,4300.9,4300.8,0.027]
[1757359603950,9.97220446,4300.9,4300.8,0.027]
[1757359604196,10.46785382,4300.9,4300.8,0.027]
[1757359604407,10.46783746,4300.9,4300.8,0.027]
[1757359604913,9.97220446,4300.9,4300.8,0.027]
[1757359605058,10.46783756,4300.9,4300.8,0.027]
[1757359605702,9.97220446,4300.9,4300.8,0.027]
[1757359609162,6.5624894,4300.9,4300.8,0.027]
[1757359609379,9.96820446,4300.9,4300.8,0.027]
[1757359609791,10.46347147,4300.9,4300.8,0.027]
[1757359610609,17.08820446,4300.9,4300.8,0.027]
[1757359610812,17.58344633,4300.9,4300.8,0.027]
[1757359611311,17.08820446,4300.9,4300.8,0.027]
[1757359611614,17.58345367,4300.9,4300.8,0.027]
[1757359612367,17.58343513,4300.9,4300.8,0.027]
[1757359612595,17.08820446,4300.9,4300.8,0.027]
[1757359612771,17.5834168,4300.9,4300.8,0.027]
[1757359613307,27.12388918,4300.9,4300.8,0.027]
[1757359615385,23.22288918,4300.9,4300.8,0.027]
[1757359615597,9.57428354,4300.9,4300.8,0.2684]
[1757359615824,13.34509474,4300.9,4300.8,0.2684]
[1757359616228,14.13709474,4300.9,4300.8,0.2684]
[1757359616831,10.23709474,4300.9,4300.8,0.2684]
[1757359617209,7.12,4300.9,4300.8,1.8639]
[1757359618117,7.12,4300.9,4300.8,1.713]
[1757359618322,10.23709474,4300.9,4300.8,1.713]
[1757359618858,0.001,4301.2,4300.8,1.8639]
[1757359619077,0.001,4301.2,4300.9,1.5955]
[1757359619433,3.11793257,4301.2,4301.1,0.2414]
[1757359619660,0.001,4301.2,4301.1,0.2414]
[1757359619870,0.793,4301.2,4301.1,0.2414]
[1757359620028,3.11793257,4301.2,4301.1,0.2414]
[1757359620228,0.793,4301.2,4301.1,0.2414]
[1757359621076,3.11793257,4301.2,4301.1,0.2414]
[1757359621675,0.908,4301.1,4300.8,0.027]
[1757359621891,3.40429474,4300.9,4300.8,0.027]
[1757359622454,3.11709474,4300.9,4300.8,0.027]
[1757359623142,3.40429474,4300.9,4300.8,0.027]
[1757359623448,3.87589474,4300.9,4300.8,0.027]
[1757359625294,9.12849474,4300.9,4300.8,0.027]
[1757359625589,11.52547058,4300.9,4300.8,0.027]
[1757359625794,12.23608969,4300.9,4300.8,0.027]
[1757359625946,19.35608969,4300.9,4300.8,0.027]
[1757359627387,19.35708969,4300.9,4300.8,0.027]
[1757359629808,0.001,4301.2,4300.8,5.7456]
[1757359630021,0.001,4301.2,4300.9,1.4303]
[1757359630376,0.001,4301.2,4301.1,0.2414]
[1757359631612,0.001,4301.2,4301.1,1.6717]
[1757359631772,0.001,4301.2,4301.1,4.17083649]
[1757359632110,0.001,4301.2,4301.1,4.14758663]
[1757359632309,0.001,4301.2,4301.1,1.8226]
[1757359632456,0.001,4301.2,4301.1,4.14758663]
[1757359632659,0.001,4301.2,4301.1,4.14958663]
[1757359633680,0.001,4301.2,4301.1,4.17283649]
[1757359633996,0.001,4301.2,4301.1,7.46663446]
[1757359634196,0.001,4301.2,4301.1,7.73262658]
[1757359634563,0.001,4301.2,4301.1,7.43882861]
[1757359636912,0.001,4301.2,4301.1,7.55482861]
[1757359638330,0.001,4301.2,4301.1,7.26558663]
[1757359638816,0.001,4301.2,4301.1,37.5593846]
[1757359640814,0.001,4301.2,4301.1,38.26414338]
[1757359642214,0.001,4301.2,4301.1,42.17214338]
[1757359643382,0.001,4301.2,4301.1,41.87262658]
[1757359643583,0.001,4301.2,4301.1,2.68438663]
[1757359643784,2.1114,4301.2,4301.1,0.118]
[1757359644088,2.1114,4301.2,4301.1,4.028]
[1757359644089,0.001,4301.2,4301.1,4.028]
[1757359644387,0.001,4301.2,4301.1,9.59438663]
[1757359644592,0.001,4301.2,4301.1,6.35298663]
[1757359644831,0.001,4301.2,4301.1,9.35298663]
[1757359645785,0.001,4301.2,4301.1,9.59438663]
[1757359646734,0.001,4301.2,4301.1,11.02468663]
[1757359647337,0.001,4301.2,4301.1,11.17558663]
[1757359647705,0.001,4301.2,4301.1,11.02468663]
[1757359650421,0.001,4301.2,4301.1,11.17558663]
[1757359650595,0.001,4301.2,4301.1,41.4693846]
[1757359650812,0.001,4301.2,4301.1,41.7689014]
[1757359651843,0.001,4301.2,4301.1,42.0013014]
[1757359652231,0.001,4301.2,4301.1,41.7689014]
[1757359652399,0.001,4301.2,4301.1,41.7017846]
[1757359653705,0.001,4301.2,4301.1,41.8177846]
[1757359654321,0.001,4301.2,4301.1,42.1173014]
[1757359656502,0.001,4301.2,4301.1,41.8849014]
[1757359657174,0.001,4301.7,4301.4,2.446]
[1757359657376,0.001,4301.7,4301.6,5.32471638]
[1757359657671,0.001,4301.7,4301.6,37.69851638]
[1757359657824,0.001,4301.7,4301.6,42.88166279]
[1757359658258,0.001,4301.7,4301.6,12.88166279]
[1757359658571,0.001,4301.7,4301.6,43.03256279]
[1757359658768,0.001,4301.7,4301.6,42.88166279]
[1757359659771,0.001,4301.7,4301.6,43.91511954]
[1757359660426,0.001,4301.9,4301.8,2.3246083]
[1757359660627,0.001,4301.9,4301.8,39.2326083]
[1757359660883,0.001,4301.9,4301.8,39.4740083]
[1757359662128,0.001,4301.9,4301.8,41.9200083]
[1757359662756,0.001,4302.4,4302.3,2.32433814]
[1757359663077,1e-08,4302.8,4302.7,2.32412206]
[1757359663409,1e-08,4302.8,4302.7,46.85176328]
[1757359663520,1e-08,4302.8,4302.7,46.82852206]
[1757359663716,1e-08,4302.9,4302.8,5.32406804]
[1757359663920,1e-08,4302.9,4302.8,35.32406804]
[1757359664144,1e-08,4302.9,4302.8,35.56546804]
[1757359664550,1e-08,4302.9,4302.8,35.32406804]
[1757359664759,0.73210001,4302.9,4302.8,5.32406804]
[1757359664972,2.06920001,4302.9,4302.8,9.23106804]
[1757359665475,2.06920001,4302.9,4302.8,9.23206804]
[1757359667487,0.73210001,4302.9,4302.8,9.23206804]
[1757359668065,0.28590001,4302.9,4302.8,9.23206804]
[1757359668265,1e-08,4302.9,4302.8,9.23206804]
[1757359669161,0.73210001,4302.9,4302.8,9.23206804]
[1757359669563,1e-08,4302.9,4302.8,9.47346804]
[1757359670590,1e-08,4302.9,4302.8,9.47546804]
[1757359670761,0.00100001,4302.9,4302.8,9.47546804]
[1757359671347,0.00100001,4302.9,4302.8,9.23406804]
[1757359672267,0.00100001,4302.9,4302.8,9.47546804]
[1757359672465,0.00100001,4302.9,4302.8,39.47546804]
[1757359672874,0.00100001,4302.9,4302.8,40.88906804]
[1757359673166,0.00100001,4302.9,4302.8,41.00506804]
[1757359674095,0.001,4303.4,4302.9,2.32401403]
[1757359674295,0.001,4303.4,4303.2,2.32385201]
[1757359674464,0.001,4303.4,4303.3,36.49343599]
[1757359674804,0.001,4303.4,4303.3,39.58619801]
[1757359676095,0.4462,4304.1,4304.0,2.32342007]
[1757359676311,0.4462,4304.1,4304.0,11.01042007]
[1757359676480,0.7321,4304.1,4304.0,11.01042007]
[1757359676666,0.4462,4304.7,4304.3,2.32325813]
[1757359676870,1.3571,4304.9,4304.7,2.32304225]
[1757359677087,0.02,4304.9,4304.7,9.34304225]
[1757359677267,1.649,4304.8,4304.7,9.34304225]
[1757359677600,2.0952,4304.8,4304.7,9.34304225]
[1757359678596,2.0952,4304.8,4304.7,9.92382624]
[1757359678922,0.7581,4304.8,4304.7,9.92382624]